[Event "Frauenbundesliga 2024-25"]
[Site "Germany"]
[Date "2024.11.17"]
[Round "2.4"]
[White "Peglau, Mirjam"]
[Black "Daulyte-Cornette, Deimante"]
[Result "0-1"]
[Annotator "TA"]
[ECO "D02"]
[WhiteElo "1964"]
[BlackElo "2371"]
[PlyCount "122"]
[EventDate "2024.11.06"]
[EventType "team-tourn"]
[EventCountry "GER"]
[SourceTitle "playchess.com"]
[Source "ChessBase"]
[SourceQuality "1"]
[TimeControl "40/5400+30:1800+30"]

{[%evp 11,122,4,0,0,2,-18,-14,-9,-7,-61,-65,-62,-56,-63,-66,-75,-44,-55,-43,-38,-37,-45,-41,-51,-23,-23,0,-43,-35,-39,0,-48,-45,-46,-41,-54,-50,-55,-49,-49,-46,-54,-50,-54,-50,-50,-50,-48,-26,-43,-37,-45,0,-56,-47,-69,-68,-94,-75,-75,-52,-49,-45,-54,-45,-53,-54,-48,-42,-57,-52,-101,-87,-93,-75,-111,-104,-338,-352,-352,-343,-361,-319,-431,-403,-436,-419,-464,-447,-464,-462,-432,-405,-487,-420,-504,-470,-514,-483,-475,-508,-482,-467,-6004,-1204,-2510,-2957,-2460,-1448,-2418,-2196,-29990,-29991]} 1. d4 {[%emt 0:00:02]} d5 {[%emt 0:00:12]} 2. Nf3 {[%emt 0:00:06]} Nf6 {[%emt 0:00:17]} 3. Bf4 {[%emt 0:00:35]} c5 {[%emt 0:00:20]} 4. c3 {[%emt 0:00:58]} Qb6 {[%emt 0:01:51]} 5. Qb3 {[%emt 0:01:42]} c4 {[%emt 0:00:53]} 6. Qxb6 {[%emt 0:02:38]} axb6 {[%emt 0:00:08]} 7. Na3 {[%emt 0:05:02]} Bd7 {[%emt 0:04:37][%cal Oe7e5] Against Nb5} 8. g3 {[%emt 0:24:09]} e6 {[%emt 0:09:08]} 9. Nc2 {[%emt 0:01:15]} Ba4 {[%emt 0:02:15]} 10. Nb4 {[%emt 0:01:54]} (10. b3 $11 Bc6 11. Bg2) 10... Bxb4 $15 {[%emt 0:09:03]} 11. cxb4 {[%emt 0:00:02]} Nc6 {[%emt 0:00:21]} 12. a3 {[%emt 0:07:49] White is weak on the light squares} Bc2 {[%emt 0:01:52]} 13. Bd2 {[%emt 0:04:46]} Ne4 {[%emt 0:11:19]} 14. Bg2 {[%emt 0:17:42]} O-O {[%emt 0:02:15]} 15. Rc1 {[%emt 0:02:38]} Nxd2 {[%emt 0:01:57]} 16. Nxd2 {[%emt 0:01:24]} Bg6 {[%emt 0:00:58]} (16... Nxd4 $2 17. e3 $18) 17. e3 {[%emt 0:02:00]} Bd3 {[%emt 0:05:28]} 18. Bf1 {[%emt 0:00:48]} Bg6 {[%emt 0:05:54]} 19. Bg2 {[%emt 0:00:56]} Rfc8 {[%emt 0:04:35]} 20. O-O {[%emt 0:03:36]} Ne7 {[%emt 0:01:06]} 21. Rc3 {[%emt 0:01:22]} (21. e4 $11) 21... Nf5 {[%emt 0:00:59]} 22. Ra1 {[%emt 0:04:23]} b5 {[%emt 0:12:58]} 23. Nf3 {[%emt 0:07:17]} f6 {[%emt 0:01:38]} 24. Re1 {[%emt 0:02:39]} Re8 {[%emt 0:01:20]} 25. Rcc1 {[%emt 0:01:39]} Rad8 {[%emt 0:03:44]} 26. Red1 {[%emt 0:01:38]} Bh5 {[%emt 0:06:42]} 27. h3 {[%emt 0:01:01] and g4 should not be overlooked} Bxf3 {[%emt 0:00:28]} 28. Bxf3 {[%emt 0:00:01]} Nd6 {[%emt 0:00:27]} 29. Kg2 {[%emt 0:01:44]} Nc8 {[%emt 0:00:21]} 30. Rd2 {[%emt 0:01:56]} Nb6 {[%emt 0:00:25]} 31. Bd1 {[%emt 0:01:00]} e5 {[%emt 0:01:40]} 32. Kf3 {[%emt 0:00:49]} ({Better is} 32. dxe5 $11 fxe5 33. b3) 32... Kf7 {[%emt 0:03:34]} 33. Bc2 {[%emt 0:00:43]} g6 {[%emt 0:00:29]} 34. Rcd1 {[%emt 0:00:25]} e4+ {[%emt 0:03:05]} 35. Kg2 {[%emt 0:00:03]} c3 {[%emt 0:00:07]} 36. bxc3 {[%emt 0:00:08]} Rc8 {[%emt 0:00:11]} 37. Ra1 $1 {[%emt 0:01:15]} Rxc3 {[%emt 0:00:20] And now ...Ra8 would win.} 38. Bd1 {[%emt 0:00:51]} Ra8 $36 {[%emt 0:01:55][%mdl 2048] Black is more active.} 39. Rda2 {[%emt 0:00:17]} Ke7 {[%emt 0:00:59]} 40. Be2 {[%emt 0:00:41]} Nc4 {[%emt 0:00:14]} 41. Kf1 {[%emt 0:10:46]} (41. a4 $15 {is more appropriate.}) 41... Ra4 {[%emt 0:01:42]} (41... Nxa3 42. Bxb5 f5 43. h4 $15) 42. Kg2 {[%emt 0:03:47]} Kd6 {[%emt 0:01:52]} (42... Nxa3 43. Bxb5 Ra8 (43... Rxb4 44. Rxa3 Rxa3 45. Rxa3 $11) 44. g4 $11) (42... Rcxa3 $2 43. Bxc4 Rxa2 44. Bxa2 $18) 43. Kf1 {[%emt 0:01:02]} Kc6 {[%emt 0:00:48] Black is much more active.} (43... Rcxa3 44. Bxc4 Rxa2 45. Bxa2 $16) (43... Nxa3 44. Bxb5 Rxb4 45. Rxa3) 44. Bxc4 $2 {[%emt 0:00:42]} (44. Bd1 $17) 44... bxc4 $17 {[%emt 0:01:39][%mdl 4096] Endgame KRR-KRR} (44... Rxc4 45. Ke2 $15) 45. Ke2 {[%emt 0:00:11]} Rd3 {[%emt 0:00:55]} 46. g4 {[%emt 0:03:56]} Kb5 {[%emt 0:02:27]} 47. Ke1 {[%emt 0:06:28]} f5 {[%emt 0:08:26]} 48. gxf5 {[%emt 0:02:30]} gxf5 {[%emt 0:00:03]} 49. Ke2 {[%emt 0:00:04]} Ra6 {[%emt 0:02:08]} (49... f4 50. exf4 Ra6 (50... Rxd4 $2 51. Rd2 $19) (50... Rxh3 $2 51. f5 $19) 51. Rg1 $19) 50. a4+ {[%emt 0:01:53]} Kxb4 {[%emt 0:00:07]} 51. a5 {[%emt 0:02:36]} Rb3 {[%emt 0:00:42]} 52. Kd2 {[%emt 0:01:04]} Rg6 {[%emt 0:02:09]} 53. Rf1 {[%emt 0:01:08]} Kb5 {[%emt 0:03:38]} 54. Rfa1 {[%emt 0:00:23]} Rg2 {[%emt 0:00:27]} 55. Ke2 {[%emt 0:00:02]} Ka6 {[%emt 0:00:49]} ({Weaker is} 55... f4 56. exf4 Ka6 (56... Rxh3 57. a6 $11) 57. f5 $19) 56. Rh1 {[%emt 0:00:52]} Rb5 {[%emt 0:01:53]} ({Much less strong is} 56... f4 57. exf4 Rf3 58. Kf1 $19) 57. Raa1 {[%emt 0:01:08]} (57. Rha1 $142) 57... Rb2+ $19 {[%emt 0:00:40]} 58. Ke1 {[%emt 0:00:33]} Rgxf2 {[%emt 0:00:30]} 59. Rg1 {[%emt 0:00:29]} Rbe2+ {[%emt 0:01:09]} 60. Kd1 {[%emt 0:00:01]} Rxe3 {[%emt 0:00:19]} 61. Rg7 {[%emt 0:00:24]} Rf1+ {[%emt 0:00:11]} 0-1

[Event "Frauenbundesliga 2024-25"]
[Site "Germany"]
[Date "2024.11.17"]
[Round "2.5"]
[White "Milliet, Sophie"]
[Black "Just, Anita"]
[Result "1-0"]
[Annotator "TA"]
[ECO "C17"]
[WhiteElo "2366"]
[BlackElo "1920"]
[PlyCount "65"]
[EventDate "2024.11.06"]
[EventType "team-tourn"]
[EventCountry "GER"]
[SourceTitle "playchess.com"]
[Source "ChessBase"]
[SourceQuality "1"]
[TimeControl "40/5400+30:1800+30"]

{[%evp 9,65,-8,-8,0,5,0,0,0,32,20,87,75,87,96,87,92,108,100,145,150,306,322,331,325,311,311,303,250,260,155,653,658,808,789,832,862,859,847,873,913,879,879,1383,1310,1268,789,776,747,1256,1304,1300,1291,1263,1254,1193,1078,1412,1334]} 1. e4 {[%emt 0:00:03]} e6 {[%emt 0:01:07]} 2. d4 {[%emt 0:00:05]} d5 {[%emt 0:00:04]} 3. Nc3 {[%emt 0:00:06]} Bb4 {[%emt 0:00:29]} 4. e5 {[%emt 0:00:11]} c5 {[%emt 0:00:20]} 5. dxc5 {[%emt 0:00:25]} Bxc3+ {[%emt 0:01:01]} 6. bxc3 {[%emt 0:00:05]} Qa5 {[%emt 0:00:35]} 7. Bd2 {[%emt 0:03:17]} Ne7 {[%emt 0:03:51]} 8. Qg4 {[%emt 0:08:10] The position is equal.} Ng6 {[%emt 0:01:46][%cal Ob8d7]} 9. Nf3 {[%emt 0:00:27]} Nc6 {[%emt 0:01:36]} (9... Nd7 $11 {remains equal.}) 10. Bd3 $16 {[%emt 0:01:41]} Qxc5 {[%emt 0:05:38]} 11. O-O {[%emt 0:01:55]} Bd7 {[%emt 0:01:43]} 12. Rab1 {[%emt 0:04:03]} b6 {[%emt 0:02:09]} 13. h4 {[%emt 0:05:40][%cal Bh2h4,Bh4h5][%mdl 32] And now h5 would win.} Qf8 {[%emt 0:18:23]} 14. Rfe1 {[%emt 0:03:39] White is much more active. The black rooks are passive.} f5 $2 {[%emt 0:03:32]} (14... Rc8 $16 {was necessary.} 15. h5 Nge7) 15. exf6 $18 {[%emt 0:04:35]} Qxf6 {[%emt 0:03:17]} 16. Bg5 {[%emt 0:01:28]} Qf7 {[%emt 0:06:51]} 17. h5 {[%emt 0:11:22]} Nge7 {[%emt 0:04:11]} 18. Bxe7 {[%emt 0:02:44]} Qxe7 {[%emt 0:01:18]} 19. Bf5 {[%emt 0:21:15]} (19. Qg3 $18) 19... e5 $2 {[%emt 0:09:25] [#]} (19... O-O-O $16) 20. Nxe5 $1 {[%emt 0:02:17][%cal Rf5d7][%mdl 512] White is clearly winning.} Nxe5 {[%emt 0:01:44]} (20... Bxf5 21. Qxf5) 21. Bxd7+ {[%emt 0:00:17]} Kd8 {[%emt 0:02:04][%cal Be8d8,Bd8e7,Be7f6,Bf6g5,Bg5f6,Bf6e5][%mdl 32] [#] Black is weak on the light squares} 22. Rxe5 $1 {[%emt 0:03:32][%mdl 512]} Qxe5 {[%emt 0:05:06]} 23. Bc6 {[%emt 0:00:08][%csl Gc6][%cal Rg4d7,Bd7c6,Bc6a8,Ba8d5][%mdl 32]} Ke7 {[%emt 0:07:55]} 24. Qd7+ {[%emt 0:00:38]} Kf6 {[%emt 0:00:10]} 25. Bxa8 {[%emt 0:00:12]} Re8 {[%emt 0:02:54]} 26. Bxd5 {[%emt 0:04:11]} Re7 {[%emt 0:00:59]} 27. Qc6+ {[%emt 0:00:07]} Kg5 {[%emt 0:00:30]} 28. Bf3 {[%emt 0:00:34] Rb5 would now be deadly.} Rc7 {[%emt 0:01:24]} 29. Rb5 {[%emt 0:01:46]} Rxc6 {[%emt 0:01:27]} 30. Rxe5+ {[%emt 0:00:07]} Kf6 {[%emt 0:00:18]} 31. Bxc6 {[%emt 0:00:09]} Kxe5 {[%emt 0:00:05]} 32. Kf1 {[%emt 0:00:18]} h6 {[%emt 0:01:21]} 33. Ke2 {[%emt 0:00:05] White took control after the opening.   Weighted Error Value: White=0.15 (very precise) /Black=0.64.  Loses game:     	---       	Black=1      Mistake:       	White=1     	Black=2      Inaccurate:     	---       	Black=2      OK:         	White=6     	Black=3      Best:        	White=3     	Black=1      Brilliant:      	White=1     	---} 1-0

[Event "Frauenbundesliga 2024-25"]
[Site "Germany"]
[Date "2024.11.17"]
[Round "2.5"]
[White "Brandt, Carina"]
[Black "Zatonskih, Anna"]
[Result "1/2-1/2"]
[Annotator "RC"]
[ECO "C11"]
[WhiteElo "2050"]
[BlackElo "2303"]
[PlyCount "26"]
[EventDate "2024.11.06"]
[EventType "team-tourn"]
[EventCountry "GER"]
[SourceTitle "playchess.com"]
[Source "ChessBase"]
[SourceQuality "1"]
[TimeControl "40/5400+30:1800+30"]

1. e4 {[%emt 1:31:00]} e6 {[%emt 1:31:00]} 2. d4 {[%emt 0:00:30]} d5 {[%emt 0:00:30]} 3. Nc3 {[%emt 0:00:30]} Nf6 {[%emt 0:00:30]} 4. e5 {[%emt 0:00:30]} Nfd7 {[%emt 0:00:30]} 5. f4 {[%emt 0:00:30]} c5 {[%emt 0:00:30]} 6. Nf3 {[%emt 0:00:30]} Nc6 {[%emt 0:00:30]} 7. Be3 {[%emt 0:00:30]} a6 {[%emt 0:00:30]} 8. Qd2 {[%emt 0:00:30]} b5 {[%emt 0:00:30]} 9. dxc5 {[%emt 0:00:30]} Bxc5 {[%emt 0:00:30]} 10. Bd3 {[%emt 0:00:30]} Qb6 {[%emt 0:00:30]} 11. Bf2 {[%emt 0:00:30]} b4 {[%emt 0:00:30]} 12. Na4 {[%emt 0:00:30]} Bxf2+ {[%emt 0:00:30]} 13. Qxf2 {[%emt 0:00:30]} Qxf2+ {[%emt 0:00:30]} 1/2-1/2

[Event "Frauenbundesliga 2024-25"]
[Site "Germany"]
[Date "2024.11.17"]
[Round "2.6"]
[White "Heinemann, Josefine"]
[Black "Rosmait, Emily"]
[Result "1-0"]
[Annotator "RC"]
[ECO "B30"]
[WhiteElo "2314"]
[BlackElo "1954"]
[PlyCount "85"]
[EventDate "2024.11.06"]
[EventType "team-tourn"]
[EventCountry "GER"]
[SourceTitle "playchess.com"]
[Source "ChessBase"]
[SourceQuality "1"]
[TimeControl "40/5400+30:1800+30"]

1. e4 {[%emt 0:00:04]} c5 {[%emt 0:00:07]} 2. Nf3 {[%emt 0:01:28]} Nc6 {[%emt 0:00:08]} 3. Bb5 {[%emt 0:00:16]} e6 {[%emt 0:00:15]} 4. Bxc6 {[%emt 0:00:24]} bxc6 {[%emt 0:00:23]} 5. b3 {[%emt 0:00:05]} d5 {[%emt 0:02:51]} 6. d3 {[%emt 0:00:35]} Ba6 {[%emt 0:09:07]} 7. Nbd2 {[%emt 0:01:57]} Nf6 {[%emt 0:17:40]} 8. e5 {[%emt 0:02:07]} Nd7 {[%emt 0:00:18]} 9. O-O {[%emt 0:01:23]} Be7 {[%emt 0:01:21]} 10. Qe2 {[%emt 0:02:08]} Qc7 {[%emt 0:02:01]} 11. c4 {[%emt 0:02:11]} g5 {[%emt 0:03:29]} 12. Bb2 {[%emt 0:02:51]} h5 {[%emt 0:03:04]} 13. Nb1 {[%emt 0:03:59]} g4 {[%emt 0:06:15]} 14. Nfd2 {[%emt 0:00:41]} Bg5 {[%emt 0:04:53]} 15. f4 {[%emt 0:03:38]} gxf3 {[%emt 0:06:09]} 16. Nxf3 {[%emt 0:00:19]} Be7 {[%emt 0:00:48]} 17. Nc3 {[%emt 0:04:56]} O-O-O {[%emt 0:02:14]} 18. Rae1 {[%emt 0:01:19]} Rdg8 {[%emt 0:04:18]} 19. Bc1 {[%emt 0:06:24]} h4 {[%emt 0:02:13]} 20. Nd1 {[%emt 0:06:26]} Rh7 {[%emt 0:01:35]} 21. Kh1 {[%emt 0:02:31]} Rhg7 {[%emt 0:03:31]} 22. Rg1 {[%emt 0:00:08]} Nf8 {[%emt 0:02:34]} 23. Bh6 {[%emt 0:01:29]} Rh7 {[%emt 0:00:47]} 24. Bxf8 {[%emt 0:00:26]} Bxf8 {[%emt 0:02:46]} 25. Nf2 {[%emt 0:01:00]} Kb8 {[%emt 0:01:25]} 26. h3 {[%emt 0:02:18]} Bc8 {[%emt 0:10:14]} 27. Ng4 {[%emt 0:02:09]} Rxg4 {[%emt 0:00:40]} 28. hxg4 {[%emt 0:00:04]} h3 {[%emt 0:08:08]} 29. g3 {[%emt 0:00:32]} Rg7 {[%emt 0:01:50]} 30. Nh2 {[%emt 0:01:33]} Be7 {[%emt 0:00:19]} 31. Rgf1 {[%emt 0:00:41]} Qd8 {[%emt 0:01:51]} 32. Rf3 {[%emt 0:00:27]} f5 {[%emt 0:00:31]} 33. gxf5 {[%emt 0:03:15]} exf5 {[%emt 0:00:06]} 34. Nf1 {[%emt 0:02:06]} Be6 {[%emt 0:01:06]} 35. Ne3 {[%emt 0:01:12]} Qg8 {[%emt 0:01:52]} 36. Qf2 {[%emt 0:03:13]} Rg5 {[%emt 0:01:00]} 37. Kh2 {[%emt 0:03:02]} Qg6 {[%emt 0:00:34]} 38. Rf1 {[%emt 0:01:06]} Bd8 {[%emt 0:00:19]} 39. Nxf5 {[%emt 0:00:42]} Bc7 {[%emt 0:00:20]} 40. Ne7 {[%emt 0:02:02]} Qg7 {[%emt 0:00:37]} 41. Qxc5 {[%emt 0:32:12]} Bd7 {[%emt 0:09:37]} 42. Nxc6+ {[%emt 0:00:00]} Kb7 {[%emt 0:00:42]} 43. Qxa7+ {[%emt 0:00:00]} 1-0

[Event "Frauenbundesliga 2024-25"]
[Site "Germany"]
[Date "2024.11.17"]
[Round "2.6"]
[White "Peglau, Sarah"]
[Black "Papp, Petra"]
[Result "0-1"]
[Annotator "RC"]
[ECO "A21"]
[WhiteElo "1859"]
[BlackElo "2239"]
[PlyCount "56"]
[EventDate "2024.11.06"]
[EventType "team-tourn"]
[EventCountry "GER"]
[SourceTitle "playchess.com"]
[Source "ChessBase"]
[SourceQuality "1"]
[TimeControl "40/5400+30:1800+30"]

1. Nf3 {[%emt 0:00:05]} g6 {[%emt 0:00:55]} 2. g3 {[%emt 0:00:10]} Bg7 {[%emt 0:00:47]} 3. Bg2 {[%emt 0:00:08]} e5 {[%emt 0:00:44]} 4. d3 {[%emt 0:02:20]} d6 {[%emt 0:01:17]} 5. c4 {[%emt 0:01:12]} f5 {[%emt 0:00:36]} 6. Nc3 {[%emt 0:00:58]} Nf6 {[%emt 0:00:26]} 7. Bg5 {[%emt 0:07:54]} c6 {[%emt 0:05:49]} 8. h4 {[%emt 0:05:40]} h6 {[%emt 0:02:08]} 9. Bd2 {[%emt 0:02:00]} Ng4 {[%emt 0:01:23]} 10. e3 {[%emt 0:09:17]} O-O {[%emt 0:03:32]} 11. Qe2 {[%emt 0:06:29]} a5 {[%emt 0:03:53]} 12. O-O-O {[%emt 0:07:45]} a4 {[%emt 0:03:33]} 13. Nh2 {[%emt 0:00:37]} a3 {[%emt 0:01:21]} 14. b3 {[%emt 0:00:46]} Na6 {[%emt 0:02:20]} 15. f3 {[%emt 0:01:42]} Nxh2 {[%emt 0:08:34]} 16. Rxh2 {[%emt 0:00:02]} d5 {[%emt 0:00:14]} 17. g4 {[%emt 0:13:30]} Nc5 {[%emt 0:18:38]} 18. Kc2 {[%emt 0:04:55]} d4 {[%emt 0:09:21]} 19. Nb1 {[%emt 0:07:43]} fxg4 {[%emt 0:05:48]} 20. fxg4 {[%emt 0:02:37]} Qb6 {[%emt 0:03:43]} 21. b4 {[%emt 0:06:09]} Ra4 {[%emt 0:01:18]} 22. Rf1 {[%emt 0:02:49]} Rxf1 {[%emt 0:03:02]} 23. Bxf1 {[%emt 0:00:02]} Rxb4 {[%emt 0:00:54]} 24. Bxb4 {[%emt 0:01:28]} Qxb4 {[%emt 0:00:02]} 25. Kc1 {[%emt 0:00:49]} e4 {[%emt 0:01:44]} 26. dxe4 {[%emt 0:03:00]} d3 {[%emt 0:02:02]} 27. Qd2 {[%emt 0:01:52]} Qa4 {[%emt 0:08:35]} 28. Bxd3 {[%emt 0:03:48]} Bb2+ {[%emt 0:00:15]} 0-1

[Event "Frauenbundesliga 2024-25"]
[Site "Germany"]
[Date "2024.11.17"]
[Round "2.7"]
[White "Roebers, Eline"]
[Black "Butenandt, Svenja"]
[Result "1-0"]
[Annotator "TA"]
[ECO "B12"]
[WhiteElo "2348"]
[BlackElo "2122"]
[PlyCount "125"]
[EventDate "2024.11.06"]
[EventType "team-tourn"]
[EventCountry "GER"]
[SourceTitle "playchess.com"]
[Source "ChessBase"]
[SourceQuality "1"]
[TimeControl "40/5400+30:1800+30"]

{[%evp 35,125,-19,-18,-60,-40,-72,-41,-52,-11,-79,-18,-25,0,-58,-34,-94,-96,-73,-52,-69,-66,-51,-52,-72,-37,-54,0,-60,0,0,0,0,0,0,0,0,0,0,72,0,110,129,316,318,563,621,606,585,956,934,1440,253,250,280,280,280,241,278,301,286,420,338,929,902,1518,1472,1587,1465,1813,1750,2198,1848,1707,6525,6028,4614,6545,5544,29968,29965,29958,12774,29973,29974,29974,29977,29977,29975,29968,29965,29991,29992]} 1. e4 {[%emt 0:00:04]} c6 {[%emt 0:00:06]} 2. d4 {[%emt 0:00:05]} d5 {[%emt 0:00:04]} 3. e5 {[%emt 0:00:02]} Bf5 {[%emt 0:00:09]} 4. Be3 {[%emt 0:00:04]} Qb6 {[%emt 0:00:36]} 5. Qc1 {[%emt 0:00:03]} e6 {[%emt 0:00:30]} 6. Nf3 {[%emt 0:00:03]} c5 {[%emt 0:01:13]} 7. c3 {[%emt 0:00:06]} Nc6 {[%emt 0:01:40]} 8. a4 {[%emt 0:00:04]} Bxb1 {[%emt 0:08:49]} 9. Qxb1 {[%emt 0:18:43]} a6 {[%emt 0:08:04]} 10. Be2 {[%emt 0:04:41]} cxd4 {[%emt 0:03:41]} 11. Nxd4 {[%emt 0:02:09]} Nxd4 {[%emt 0:30:17]} 12. Bxd4 {[%emt 0:00:24]} Bc5 {[%emt 0:02:17]} 13. a5 {[%emt 0:00:44]} Qa7 {[%emt 0:01:47]} 14. Bxc5 {[%emt 0:11:24]} Qxc5 {[%emt 0:00:03]} 15. O-O {[%emt 0:00:07]} Ne7 {[%emt 0:04:09]} 16. Qd3 {[%emt 0:01:39]} Qc7 {[%emt 0:09:05]} 17. f4 {[%emt 0:02:29]} g6 {[%emt 0:05:19]} 18. Bd1 {[%emt 0:13:49]} Nc6 {[%emt 0:01:51]} 19. Ba4 {[%emt 0:02:13]} O-O {[%emt 0:02:53]} 20. b4 {[%emt 0:00:08]} Ne7 {[%emt 0:01:04]} 21. Rf3 {[%emt 0:05:45]} Rac8 {[%emt 0:01:13]} 22. Raf1 {[%emt 0:01:20]} (22. Bd1 $11) 22... Qc4 {[%emt 0:04:15]} (22... Rfd8 $17 {and ...b5 should not be overlooked} 23. g3 d4) 23. Qd1 $11 {[%emt 0:00:43]} Rfd8 {[%emt 0:03:14]} 24. Rd3 {[%emt 0:02:54]} (24. g4 $11) 24... h5 $15 {[%emt 0:01:57]} 25. Bb3 {[%emt 0:00:42] [#]} ({Better is} 25. Rf2 $15) 25... Qc7 $1 $17 {[%emt 0:02:09]} 26. Qd2 {[%emt 0:00:46]} Nf5 {[%emt 0:00:30]} 27. Qf2 {[%emt 0:02:33]} Qe7 {[%emt 0:00:35]} 28. Rfd1 {[%emt 0:00:55]} Kg7 {[%emt 0:00:56]} 29. Qe1 {[%emt 0:02:30]} Rh8 {[%emt 0:00:39]} 30. Ba2 {[%emt 0:01:55]} Rhd8 {[%emt 0:00:55]} (30... b6 $15 31. c4 (31. axb6 Qb7 $17) 31... bxa5 (31... dxc4 32. Rd7 $17) 32. cxd5 exd5 (32... Qxb4 33. dxe6 fxe6 34. Qxb4 $16) 33. Bxd5 (33. bxa5 d4 $15) 33... axb4 (33... Qxb4 34. Be4 $15)) 31. g3 {[%emt 0:03:40]} (31. Bb3 $11) 31... Rh8 {[%emt 0:01:41]} (31... Rb8 $15) 32. c4 $1 $11 {[%emt 0:01:54]} d4 {[%emt 0:00:47]} (32... dxc4 $5 33. Rd7 $8 Qe8 $18) 33. c5 {[%emt 0:00:46]} Rcd8 {[%emt 0:00:51]} 34. Bb1 {[%emt 0:07:35]} h4 {[%emt 0:01:02]} 35. g4 {[%emt 0:01:09]} Ne3 {[%emt 0:00:05]} 36. R1d2 {[%emt 0:00:12]} Nxg4 {[%emt 0:01:05] [#]} (36... h3 $11 37. Rxd4 Rxd4 (37... Nxg4 38. Rd6 $16) 38. Rxd4 Nxg4) 37. Rxd4 {[%emt 0:00:04]} (37. h3 $1 $16 {[%cal Rh3g4]} Ne3 38. Rxd4) 37... h3 {[%emt 0:01:11]} (37... Rxd4 $11 {keeps the balance.} 38. Rxd4 h3) 38. Rd6 $16 {[%emt 0:01:54]} Nh6 $2 {[%emt 0:01:17]} (38... Rxd6 $16 39. cxd6 (39. exd6 Qd7 $11) 39... Qd7) 39. Qg3 $18 {[%emt 0:03:37]} Nf5 $2 {[%emt 0:00:35]} (39... Rhe8 40. Qxh3 Kh7) 40. Bxf5 $18 {[%emt 0:00:10]} exf5 {[%emt 0:00:02]} 41. Qc3 {[%emt 0:32:48]} Qh4 {[%emt 0:10:11]} 42. e6+ {[%emt 0:00:00]} Kh6 {[%emt 0:01:00]} 43. Qg3 $2 {[%emt 0:00:00]} (43. exf7 $2 Qe1#) (43. R2d3) 43... Qxg3+ $18 {[%emt 0:00:10]} 44. hxg3 {[%emt 0:00:00]} Rxd6 {[%emt 0:00:10]} 45. Rxd6 {[%emt 0:00:00]} (45. cxd6 fxe6 46. Kh2 Rd8 $15) 45... fxe6 {[%emt 0:00:45]} 46. Rxe6 {[%emt 0:00:00]} Rh7 {[%emt 0:02:29]} 47. Kh2 {[%emt 0:00:00]} Rd7 {[%emt 0:01:29]} (47... Kh5 {was called for.} 48. Kxh3 g5) 48. Kxh3 $18 {[%emt 0:00:00]} Kg7 $2 {[%emt 0:01:21]} (48... Kh5 49. Rf6 Re7) 49. Rb6 $18 {[%emt 0:00:00]} Rc7 {[%emt 0:00:25]} 50. Kh4 {[%emt 0:00:00]} Kh6 {[%emt 0:00:08]} 51. g4 {[%emt 0:00:00]} fxg4 {[%emt 0:00:35]} 52. f5 {[%emt 0:00:00]} Rf7 {[%emt 0:00:53]} 53. Rxg6+ {[%emt 0:00:00]} Kh7 {[%emt 0:00:03]} 54. Kxg4 {[%emt 0:00:00]} Rd7 {[%emt 0:00:06]} 55. Rb6 {[%emt 0:00:00]} Kg7 {[%emt 0:00:06]} 56. Kg5 {[%emt 0:00:00]} Kf7 {[%emt 0:00:08]} 57. c6 {[%emt 0:00:00]} bxc6 {[%emt 0:00:05]} 58. Rxc6 {[%emt 0:00:00]} Rb7 {[%emt 0:00:15]} 59. Rb6 {[%emt 0:00:00]} Ra7 {[%emt 0:00:06]} 60. b5 {[%emt 0:00:00]} axb5 {[%emt 0:00:08]} 61. a6 {[%emt 0:00:00]} Ra8 {[%emt 0:00:13]} 62. Rb7+ {[%emt 0:00:00]} ({Not} 62. Rxb5 Rxa6 63. Rb7+ Kg8 $11) 62... Kf8 {[%emt 0:00:05]} 63. a7 {[%emt 0:00:00]} ({Worse is} 63. Rxb5 Rxa6 64. Rb7 Ke8 $11) 1-0

[Event "Frauenbundesliga 2024-25"]
[Site "Germany"]
[Date "2024.11.17"]
[Round "2.7"]
[White "Klek, Hanna Marie"]
[Black "Reizniece-Ozola, Dana"]
[Result "1-0"]
[Annotator "RC"]
[ECO "B94"]
[WhiteElo "2289"]
[BlackElo "2255"]
[PlyCount "91"]
[EventDate "2024.11.06"]
[EventType "team-tourn"]
[EventCountry "GER"]
[SourceTitle "playchess.com"]
[Source "ChessBase"]
[SourceQuality "1"]
[TimeControl "40/5400+30:1800+30"]

1. e4 {[%emt 0:00:03]} c5 {[%emt 0:00:07]} 2. Nf3 {[%emt 0:00:05]} d6 {[%emt 0:00:07]} 3. d4 {[%emt 0:00:05]} cxd4 {[%emt 0:00:06]} 4. Nxd4 {[%emt 0:00:04]} Nf6 {[%emt 0:00:15]} 5. Nc3 {[%emt 0:00:05]} a6 {[%emt 0:00:19]} 6. Bg5 {[%emt 0:01:47]} Nbd7 {[%emt 0:00:08]} 7. Qe2 {[%emt 0:00:10]} e6 {[%emt 0:05:49]} 8. O-O-O {[%emt 0:00:33]} Be7 {[%emt 0:00:24]} 9. f4 {[%emt 0:00:52]} Qc7 {[%emt 0:04:37]} 10. Nf3 {[%emt 0:07:22]} Nc5 {[%emt 0:22:51]} 11. e5 {[%emt 0:05:05]} dxe5 {[%emt 0:03:29]} 12. fxe5 {[%emt 0:00:21]} Nd5 {[%emt 0:01:54]} 13. Nxd5 {[%emt 0:05:02]} exd5 {[%emt 0:00:18]} 14. Bxe7 {[%emt 0:06:50]} Qxe7 {[%emt 0:00:06]} 15. Rxd5 {[%emt 0:00:36]} Be6 {[%emt 0:04:49]} 16. Rd6 {[%emt 0:01:32]} O-O {[%emt 0:00:47]} 17. Qe3 {[%emt 0:06:56]} Rac8 {[%emt 0:00:33]} 18. Kb1 {[%emt 0:10:40]} f6 {[%emt 0:04:49]} 19. Be2 {[%emt 0:02:47]} fxe5 {[%emt 0:03:55]} 20. Rhd1 {[%emt 0:05:01]} Bf5 {[%emt 0:12:27]} 21. Bc4+ {[%emt 0:04:23]} Kh8 {[%emt 0:00:05]} 22. Qxe5 {[%emt 0:01:03]} Qxe5 {[%emt 0:04:51]} 23. Nxe5 {[%emt 0:00:13]} g6 {[%emt 0:00:36]} 24. R6d4 {[%emt 0:12:23]} b5 {[%emt 0:08:00]} 25. Bd5 {[%emt 0:04:14]} Rc7 {[%emt 0:01:14]} 26. g4 {[%emt 0:02:51]} Bc8 {[%emt 0:01:32]} 27. h3 {[%emt 0:01:57]} Kg7 {[%emt 0:00:36]} 28. c4 {[%emt 0:03:24]} Re7 {[%emt 0:02:38]} 29. Nc6 {[%emt 0:02:16]} Re3 {[%emt 0:06:09]} 30. cxb5 {[%emt 0:00:16]} axb5 {[%emt 0:00:33]} 31. h4 {[%emt 0:07:48]} Rf2 {[%emt 0:03:30]} 32. Rb4 {[%emt 0:02:12]} Nd3 {[%emt 0:02:32]} 33. Rxb5 {[%emt 0:01:26]} Bxg4 {[%emt 0:00:11]} 34. Rb7+ {[%emt 0:02:34]} Kh6 {[%emt 0:01:35]} 35. Rg1 {[%emt 0:02:08]} Ree2 {[%emt 0:01:49]} 36. a4 {[%emt 0:01:05]} Bf5 {[%emt 0:02:49]} 37. Ka1 {[%emt 0:00:24]} Rxb2 {[%emt 0:01:11]} 38. Rxb2 {[%emt 0:00:57]} Nxb2 {[%emt 0:00:01]} 39. a5 {[%emt 0:00:29]} Na4 {[%emt 0:00:13]} 40. Rc1 {[%emt 0:02:31]} Rf4 {[%emt 0:01:50]} 41. Ka2 {[%emt 0:04:02]} Bd3 {[%emt 0:06:57]} 42. Ka3 {[%emt 0:04:04]} Rxh4 {[%emt 0:04:33]} 43. Bb3 {[%emt 0:02:16]} Bb5 {[%emt 0:00:12]} 44. Na7 {[%emt 0:00:30]} Bd7 {[%emt 0:00:16]} 45. Nc6 {[%emt 0:01:38]} Rh5 {[%emt 0:03:14]} 46. Kxa4 {[%emt 0:00:17]} 1-0